fUST/lending_fUST_20250222
["ID","MTS","AMOUNT","RATE_DAILY","PERIOD"]
[354077415,1740225046107,-452.36516156,0.00015168,2]
[354077417,1740225046117,-1073.68,0.00015178,2]
[354077419,1740225046126,-2035.75,0.00015178,2]
[354077421,1740225046135,-667.29,0.00015178,2]
[354077423,1740225046144,-560.73,0.00015178,2]
[354077425,1740225046153,-530.67,0.00015178,2]
[354077427,1740225046162,-737.92,0.00015178,2]
[354077429,1740225046171,-6146.7,0.00015178,2]
[354077430,1740225046181,-3523.95,0.00015178,2]
[354077432,1740225046191,-1299.48,0.00015178,2]
[354077434,1740225046201,-500.0,0.00015222,2]
[354077435,1740225046211,-1500.0,0.00015222,2]
[354077437,1740225046220,-1073.68,0.0001526,2]
[354077439,1740225046229,-2035.75,0.0001526,2]
[354077441,1740225046238,-667.29,0.0001526,2]
[354077443,1740225046247,-560.73,0.0001526,2]
[354077445,1740225046256,-530.67,0.0001526,2]
[354077447,1740225046265,-737.92,0.0001526,2]
[354077449,1740225046274,-6146.7,0.0001526,2]
[354077451,1740225046284,-3523.95,0.0001526,2]
[354077453,1740225046293,-1299.48,0.0001526,2]
[354077455,1740225046303,-855.03201106,0.00015308,2]
[354077457,1740225046313,-1073.68,0.00015342,2]
[354077459,1740225046322,-2035.75,0.00015342,2]
[354077461,1740225046331,-667.29,0.00015342,2]
[354077463,1740225046341,-560.73,0.00015342,2]
[354077465,1740225046351,-530.67,0.00015342,2]
[354077467,1740225046360,-737.92,0.00015342,2]
[354077469,1740225046369,-6146.7,0.00015342,2]
[354077471,1740225046379,-3523.95,0.00015342,2]
[354077473,1740225046390,-1299.48,0.00015342,2]
[354077475,1740225046399,-500.0,0.00015342,2]
[354077477,1740225046408,-855.03201106,0.00015408,2]
[354077478,1740225046418,-263.14410552,0.00015421,2]
[354077480,1740225046427,-1000.0,0.00015421,2]
[354077482,1740225046437,-1099.67744206,0.00015421,2]
[354077484,1740225046446,-1000.0,0.00015421,2]
[354077486,1740225046454,-1000.0,0.00015421,2]
[354077488,1740225046464,-186.51817746,0.00015421,2]
[354077490,1740225046473,-603.34612592,0.00015421,2]
[354077492,1740225046483,-667.57096307,0.00015421,2]
[354077494,1740225046492,-1073.68,0.00015424,2]
[354077496,1740225046502,-2035.75,0.00015424,2]
[354077499,1740225046511,-667.29,0.00015424,2]
[354077502,1740225046520,-560.73,0.00015424,2]
[354077505,1740225046529,-530.67,0.00015424,2]
[354077508,1740225046538,-737.92,0.00015424,2]
[354077510,1740225046546,-6146.7,0.00015424,2]
[354077513,1740225046555,-3523.95,0.00015424,2]
[354077517,1740225046565,-1299.48,0.00015424,2]
[354077520,1740225046576,-1073.68,0.00015506,2]
[354077522,1740225046586,-2035.75,0.00015506,2]
[354077524,1740225046595,-667.29,0.00015506,2]
[354077527,1740225046605,-560.73,0.00015506,2]
[354077530,1740225046614,-530.67,0.00015506,2]
[354077532,1740225046624,-737.92,0.00015506,2]
[354077535,1740225046633,-6146.7,0.00015506,2]
[354077538,1740225046642,-3523.95,0.00015506,2]
[354077542,1740225046652,-1299.48,0.00015506,2]
[354077544,1740225046661,-855.03201106,0.00015508,2]
[354077548,1740225046670,-452.36516156,0.00015579,2]
[354077550,1740225046679,-1073.73,0.00015589,2]
[354077553,1740225046689,-2035.88,0.00015589,2]
[354077556,1740225046698,-667.48450594,0.00015589,2]
[354077559,1740225046707,-560.87950026,0.00015589,2]
[354077561,1740225046716,-530.76,0.00015589,2]
[354077563,1740225046725,-738.1279653,0.00015589,2]
[354077565,1740225046733,-6146.87501739,0.00015589,2]
[354077567,1740225046743,-3524.13464256,0.00015589,2]
[354077569,1740225046752,-1299.5417759,0.00015589,2]
[354077571,1740225046761,-855.03201106,0.00015608,2]
[354077573,1740225046770,-855.03201106,0.00015708,2]
[354077575,1740225046779,-262.49867,0.00015775,2]
[354077578,1740225046789,-179.69451932,0.00015786,2]
[354077580,1740225046798,-855.03201106,0.00015808,2]
[354077582,1740225046807,-1000.0,0.0001589,2]
[354077584,1740225046816,-573.90886023,0.000159,2]
[354077586,1740225046825,-573.90886023,0.000159,2]
[354077587,1740225046834,-573.90886023,0.000159,2]
[354077589,1740225046843,-573.90886023,0.000159,2]
[354077591,1740225046852,-573.90886023,0.000159,2]
[354077594,1740225046867,-573.90886023,0.000159,2]
[354077597,1740225046876,-573.90886023,0.000159,2]
[354077600,1740225046885,-573.90886023,0.000159,2]
[354077603,1740225046894,-573.90886023,0.000159,2]
[354077606,1740225046907,-573.90886023,0.000159,2]
[354077609,1740225046919,-573.90886023,0.000159,2]
[354077611,1740225046929,-573.90886023,0.000159,2]
[354077613,1740225046939,-573.90886023,0.000159,2]
[354077615,1740225046947,-573.90886023,0.000159,2]
[354077617,1740225046956,-573.90886023,0.000159,2]
[354077619,1740225046965,-573.90886023,0.000159,2]
[354077621,1740225046975,-573.90886023,0.000159,2]
[354077623,1740225046984,-573.90886023,0.000159,2]
[354077625,1740225046994,-573.90886023,0.000159,2]
[354077627,1740225047003,-573.9,0.000159,2]
[354077629,1740225047011,-855.03201106,0.00015908,2]
[354077631,1740225047020,-465.05130657,0.00015945,2]
[354077633,1740225047030,-452.36516156,0.0001599,2]
[354077635,1740225047039,-50000.0,0.00016,2]
[354077637,1740225047047,-855.03201106,0.00016008,2]
[354077638,1740225047056,-855.03201106,0.00016108,2]
[354077640,1740225047067,-722.77,0.00016164,2]
[354077642,1740225047076,-661.76198836,0.000162,2]
[354077644,1740225047086,-661.76198834,0.000162,2]
[354077646,1740225047097,-661.76198834,0.000162,2]
[354077648,1740225047106,-855.03201106,0.00016208,2]
[354077650,1740225047115,-500.0,0.0001626,2]
[354077652,1740225047124,-500.0,0.0001626,2]
[354077654,1740225047134,-8058.69696571,0.00016279,2]
[354077657,1740225047147,-5000.0,0.00016279,2]
[354077658,1740225047156,-5000.0,0.00016279,2]
[354077661,1740225047165,-5000.0,0.00016279,2]
[354077662,1740225047174,-5000.0,0.00016279,2]
[354077664,1740225047183,-500.0,0.0001628,2]
[354077666,1740225047193,-855.03201106,0.00016308,2]
[354077669,1740225047203,-452.36516156,0.00016381,2]
[354077671,1740225047212,-462.0,0.00016385,2]
[354077673,1740225047222,-462.0,0.00016385,2]
[354077675,1740225047231,-462.0,0.00016385,2]
[354077677,1740225047241,-462.0,0.00016385,2]
[354077679,1740225047250,-462.0,0.00016385,2]
[354077680,1740225047259,-462.0,0.00016385,2]
[354077682,1740225047268,-462.0,0.00016385,2]
[354077684,1740225047277,-462.0,0.00016385,2]
[354077686,1740225047287,-462.0,0.00016385,2]
[354077688,1740225047298,-462.0,0.00016385,2]
[354077690,1740225047307,-462.0,0.00016385,2]
[354077692,1740225047317,-462.0,0.00016385,2]
[354077694,1740225047326,-462.0,0.00016385,2]
[354077696,1740225047335,-462.0,0.00016385,2]
[354077698,1740225047344,-656.0,0.00016386,2]
[354077700,1740225047354,-656.0,0.00016386,2]
[354077702,1740225047363,-656.0,0.00016386,2]
[354077704,1740225047372,-656.0,0.00016386,2]
[354077706,1740225047381,-656.0,0.00016386,2]
[354077708,1740225047391,-656.0,0.00016386,2]
[354077710,1740225047400,-656.0,0.00016386,2]
[354077712,1740225047410,-656.0,0.00016386,2]
[354077714,1740225047419,-656.0,0.00016386,2]
[354077724,1740225047505,-656.0,0.00016386,2]
[354077726,1740225047515,-656.0,0.00016386,2]
[354077728,1740225047524,-656.0,0.00016386,2]
[354077730,1740225047533,-656.0,0.00016386,2]
[354077732,1740225047543,-656.0,0.00016386,2]
[354077734,1740225047552,-462.0,0.00016388,2]
[354077736,1740225047561,-462.0,0.00016388,2]
[354077738,1740225047570,-462.0,0.00016388,2]
[354077740,1740225047579,-462.0,0.00016388,2]
[354077742,1740225047588,-462.0,0.00016388,2]
[354077744,1740225047596,-462.0,0.00016388,2]
[354077746,1740225047605,-462.0,0.00016388,2]
[354077748,1740225047614,-462.0,0.00016388,2]
[354077750,1740225047624,-462.0,0.00016388,2]
[354077751,1740225047634,-462.0,0.00016388,2]
[354077754,1740225047643,-462.0,0.00016388,2]
[354077756,1740225047652,-462.0,0.00016388,2]
[354077757,1740225047662,-462.0,0.00016388,2]
[354077759,1740225047671,-462.0,0.00016388,2]
[354077761,1740225047680,-656.0,0.00016389,2]
[354077763,1740225047690,-656.0,0.00016389,2]
[354077765,1740225047699,-656.0,0.00016389,2]
[354077767,1740225047707,-656.0,0.00016389,2]
[354077769,1740225047717,-656.0,0.00016389,2]
[354077771,1740225047726,-656.0,0.00016389,2]
[354077773,1740225047735,-656.0,0.00016389,2]
[354077775,1740225047744,-656.0,0.00016389,2]
[354077777,1740225047753,-656.0,0.00016389,2]
[354077779,1740225047762,-656.0,0.00016389,2]
[354077781,1740225047771,-656.0,0.00016389,2]
[354077783,1740225047781,-656.0,0.00016389,2]
[354077785,1740225047792,-656.0,0.00016389,2]
[354077787,1740225047801,-656.0,0.00016389,2]
[354077789,1740225047812,-462.0,0.00016391,2]
[354077791,1740225047821,-462.0,0.00016391,2]
[354077793,1740225047830,-462.0,0.00016391,2]
[354077795,1740225047839,-462.0,0.00016391,2]
[354077797,1740225047849,-462.0,0.00016391,2]
[354077799,1740225047859,-462.0,0.00016391,2]
[354077801,1740225047868,-462.0,0.00016391,2]
[354077803,1740225047877,-462.0,0.00016391,2]
[354077805,1740225047887,-462.0,0.00016391,2]
[354077807,1740225047907,-462.0,0.00016391,2]
[354077809,1740225047928,-462.0,0.00016391,2]
[354077811,1740225047941,-462.0,0.00016391,2]
[354077813,1740225047950,-462.0,0.00016391,2]
[354077815,1740225047960,-656.0,0.00016391,2]
[354077816,1740225047969,-656.0,0.00016391,2]
[354077818,1740225047979,-656.0,0.00016391,2]
[354077820,1740225047989,-656.0,0.00016391,2]
[354077822,1740225047999,-656.0,0.00016391,2]
[354077825,1740225048009,-656.0,0.00016391,2]
[354077826,1740225048018,-656.0,0.00016391,2]
[354077828,1740225048028,-656.0,0.00016391,2]
[354077830,1740225048037,-656.0,0.00016391,2]
[354077832,1740225048047,-656.0,0.00016391,2]
[354077834,1740225048057,-656.0,0.00016391,2]
[354077836,1740225048067,-656.0,0.00016391,2]
[354077838,1740225048076,-656.0,0.00016391,2]
[354077840,1740225048085,-656.0,0.00016391,2]
[354077842,1740225048095,-462.0,0.00016393,2]
[354077844,1740225048106,-462.0,0.00016393,2]
[354077846,1740225048116,-462.0,0.00016393,2]
[354077848,1740225048126,-462.0,0.00016393,2]
[354077850,1740225048136,-462.0,0.00016393,2]
[354077852,1740225048146,-462.0,0.00016393,2]
[354077854,1740225048156,-462.0,0.00016393,2]
[354077856,1740225048166,-462.0,0.00016393,2]
[354077858,1740225048176,-462.0,0.00016393,2]
[354077860,1740225048187,-462.0,0.00016393,2]
[354077862,1740225048197,-462.0,0.00016393,2]
[354077864,1740225048208,-462.0,0.00016393,2]
[354077866,1740225048219,-462.0,0.00016393,2]
[354077868,1740225048230,-462.0,0.00016393,2]
[354077870,1740225048240,-656.0,0.00016394,2]
[354077872,1740225048251,-656.0,0.00016394,2]
[354077874,1740225048261,-656.0,0.00016394,2]
[354077876,1740225048273,-656.0,0.00016394,2]
[354077878,1740225048283,-656.0,0.00016394,2]
[354077880,1740225048293,-656.0,0.00016394,2]
[354077882,1740225048303,-656.0,0.00016394,2]
[354077884,1740225048313,-656.0,0.00016394,2]
[354077886,1740225048323,-656.0,0.00016394,2]
[354077887,1740225048334,-656.0,0.00016394,2]
[354077888,1740225048344,-656.0,0.00016394,2]
[354077889,1740225048356,-656.0,0.00016394,2]
[354077890,1740225048367,-656.0,0.00016394,2]
[354077891,1740225048378,-656.0,0.00016394,2]
[354077892,1740225048388,-855.03201106,0.00016408,2]
[354077893,1740225048399,-587.0,0.0001642,2]
[354077894,1740225048410,-1296.31444142,0.00016422,2]
[354077895,1740225048421,-1500.0,0.00016422,2]
[354077896,1740225048433,-1500.0,0.00016438,2]
[354077897,1740225048444,-855.03201106,0.00016508,2]
[354077898,1740225048460,-2500.0,0.0001651,2]
[354077899,1740225048471,-855.03201106,0.00016608,2]
[354077901,1740225048481,-855.03201106,0.00016708,2]
[354077903,1740225048491,-465.00256533,0.00016742,2]
[354077905,1740225048501,-855.03201106,0.00016808,2]
[354077907,1740225048511,-1000.0,0.00016808,2]
[354077909,1740225048521,-383.123283,0.00016808,2]
[354077911,1740225048531,-661.76198834,0.00016818,2]
[354077913,1740225048542,-1000.0,0.00016828,2]
[354077914,1740225048551,-230.282,0.00016878,2]
[354077916,1740225048562,-1970.0,0.00016878,2]
[354077919,1740225048573,-538.0,0.00016878,2]
[354077921,1740225048582,-2287.0,0.00016878,2]
[354077922,1740225048592,-458.026,0.00016878,2]
[354077925,1740225048603,-250.0,0.00016878,2]
[354077927,1740225048613,-157.026,0.00016878,2]
[354077928,1740225048623,-185.448,0.00016878,2]
[354077931,1740225048634,-855.03201106,0.00016908,2]
[354077933,1740225048644,-157.53055097,0.00016932,2]
[354077934,1740225048654,-465.00268687,0.00016945,2]
[354077937,1740225048665,-500.0,0.00016986,2]
[354077938,1740225048675,-452.36516156,0.00016998,2]
[354077941,1740225048686,-500.0,0.00017,7]
[354077943,1740225048695,-500.0,0.00017,7]
[354077944,1740225048705,-500.0,0.00017,7]
[354077946,1740225048715,-500.0,0.00017,7]
[354077948,1740225048724,-500.0,0.00017,7]
[354077951,1740225048734,-500.0,0.00017,7]
[354077953,1740225048744,-500.0,0.00017,7]
[354077955,1740225048754,-288.67,0.00017,7]
[354077957,1740225048764,-855.03201106,0.00017008,2]
[354077959,1740225048774,-157.53055097,0.00017041,2]
[354077960,1740225048784,-2200.0,0.00017052,2]
[354077962,1740225048793,-500.0,0.00017087,2]
[354077965,1740225048803,-855.03201106,0.00017108,2]
[354077967,1740225048813,-157.53055097,0.00017178,2]
[354077969,1740225048822,-855.03201106,0.00017208,2]
[354077971,1740225048833,-602.06919072,0.0001728,2]
[354077972,1740225048842,-161.445249,0.00017292,2]
[354077974,1740225048852,-1020.56930532,0.00017305,2]
[354077976,1740225048862,-855.03201106,0.00017308,2]
[354077979,1740225048872,-157.53055097,0.00017315,2]
[354077980,1740225048882,-157.53055099,0.0001737,2]
[354077983,1740225048892,-154.37240874,0.0001737,2]
[354077984,1740225048905,-10000.0,0.000174,2]
[354077986,1740225048915,-855.03201106,0.00017408,2]
[354077989,1740225048925,-157.53055097,0.00017425,2]
[354077991,1740225048935,-452.36516156,0.00017464,2]
[354077993,1740225048947,-5000.0,0.00017474,2]
[354077994,1740225048957,-5000.0,0.00017474,2]
[354077996,1740225048967,-5000.0,0.00017474,2]
[354077998,1740225048977,-5000.0,0.00017474,2]
[354078001,1740225048988,-5000.0,0.00017474,2]
[354078003,1740225048998,-5000.0,0.00017474,2]
[354078005,1740225049009,-5000.0,0.00017474,2]
[354078007,1740225049019,-5000.0,0.00017474,2]
[354078008,1740225049030,-5000.0,0.00017474,2]
[354078010,1740225049039,-726.184325,0.00017484,2]
[354078013,1740225049050,-726.184325,0.00017484,2]
[354078014,1740225049059,-572.347246,0.00017484,2]
[354078017,1740225049069,-572.347246,0.00017484,2]
[354078019,1740225049079,-361.260264,0.00017484,2]
[354078021,1740225049089,-361.260264,0.00017484,2]
[354078022,1740225049099,-500.0,0.000175,2]
[354078024,1740225049108,-855.03201106,0.00017508,2]
[354078026,1740225049118,-722.77,0.00017534,4]
[354078028,1740225049129,-12072.92063281,0.00017545,2]
[354078030,1740225049138,-157.53055097,0.00017562,2]
[354078032,1740225049148,-150.0,0.00017562,4]
[354078035,1740225049158,-1000.0,0.00017589,2]
[354078037,1740225049167,-151.0,0.000176,2]
[354078039,1740225049177,-1000.0,0.00017601,2]
[354078041,1740225049187,-855.03201106,0.00017608,2]
[354078042,1740225049197,-1000.0,0.00017617,2]
[354078044,1740225049207,-1000.0,0.00017617,2]
[354078046,1740225049218,-3880.0926502,0.00017638,2]
[354078049,1740225049228,-1000.0,0.00017648,2]
[354078051,1740225049238,-424.39658259,0.00017677,2]
[354078053,1740225049249,-157.53055097,0.00017699,2]
[354078055,1740225049259,-855.03201106,0.00017708,2]
[354078057,1740225049269,-500.0,0.0001772,2]
[354078059,1740225049279,-1000.0,0.00017724,2]
[354078061,1740225049289,-8830.37113292,0.00017767,2]
[354078063,1740225049298,-452.36516156,0.0001779,2]
[354078065,1740225049308,-3000.0,0.000178,2]
[354078067,1740225049318,-1000.0,0.000178,2]
[354078069,1740225049328,-6238.11532575,0.000178,2]
[354078071,1740225049338,-855.03201106,0.00017808,2]
[354078073,1740225049348,-157.53055097,0.00017808,2]
[354078075,1740225049359,-500.0,0.0001781,2]
[354078077,1740225049369,-151.18936095,0.00017811,4]
[354078079,1740225049378,-22627.40192453,0.00017811,2]
[354078081,1740225049387,-1500.0,0.0001783,2]
[354078083,1740225049396,-452.36516156,0.00017857,2]
[354078085,1740225049406,-407.40065878,0.00017867,2]
[354078086,1740225049415,-349.0,0.00017867,2]
[354078089,1740225049425,-201.69667616,0.00017867,2]
[354078090,1740225049435,-204.88884452,0.00017867,2]
[354078093,1740225049445,-349.0,0.00017867,2]
[354078095,1740225049454,-349.0,0.00017867,2]
[354078097,1740225049463,-315.0,0.00017867,2]
[354078098,1740225049472,-349.0,0.00017867,2]
[354078100,1740225049482,-315.0,0.00017867,2]
[354078102,1740225049491,-349.0,0.00017867,2]
[354078105,1740225049502,-349.0,0.00017867,2]
[354078107,1740225049511,-315.0,0.00017867,2]
[354078109,1740225049520,-315.0,0.00017867,2]
[354078111,1740225049529,-349.0,0.00017867,2]
[354078113,1740225049538,-349.0,0.00017867,2]
[354078115,1740225049547,-315.0,0.00017867,2]
[354078124,1740225049629,-349.0,0.00017867,2]
[354078126,1740225049639,-315.0,0.00017867,2]
[354078128,1740225049648,-349.0,0.00017867,2]
[354078130,1740225049658,-315.0,0.00017867,2]
[354078132,1740225049667,-349.0,0.00017867,2]
[354078134,1740225049677,-315.0,0.00017867,2]
[354078136,1740225049686,-349.0,0.00017867,2]
[354078138,1740225049696,-315.0,0.00017867,2]
[354078140,1740225049705,-315.0,0.00017867,2]
[354078142,1740225049714,-349.0,0.00017867,2]
[354078144,1740225049723,-315.0,0.00017867,2]
[354078146,1740225049732,-349.0,0.00017867,2]
[354078148,1740225049742,-315.0,0.00017867,2]
[354078150,1740225049751,-349.0,0.00017867,2]
[354078152,1740225049760,-315.0,0.00017867,2]
[354078154,1740225049770,-349.0,0.00017867,2]
[354078156,1740225049779,-315.0,0.00017867,2]
[354078158,1740225049788,-349.0,0.00017867,2]
[354078160,1740225049798,-315.0,0.00017867,2]
[354078162,1740225049807,-315.0,0.00017867,2]
[354078164,1740225049816,-349.0,0.00017867,2]
[354078166,1740225049826,-315.0,0.00017867,2]
[354078168,1740225049835,-349.0,0.00017867,2]
[354078170,1740225049845,-315.0,0.00017867,2]
[354078172,1740225049855,-349.0,0.00017867,2]
[354078174,1740225049865,-315.0,0.00017867,2]
[354078177,1740225049875,-349.0,0.00017867,2]
[354078179,1740225049885,-315.0,0.00017867,2]
[354078180,1740225049894,-349.0,0.00017867,2]
[354078183,1740225049908,-315.0,0.00017867,2]
[354078185,1740225049917,-349.0,0.00017867,2]
[354078187,1740225049927,-315.0,0.00017867,2]
[354078189,1740225049937,-349.0,0.00017867,2]
[354078191,1740225049947,-315.0,0.00017867,2]
[354078193,1740225049957,-349.0,0.00017867,2]
[354078195,1740225049966,-315.0,0.00017867,2]
[354078197,1740225049977,-349.0,0.00017867,2]
[354078199,1740225049987,-315.0,0.00017867,2]
[354078201,1740225049996,-349.0,0.00017867,2]
[354078203,1740225050005,-349.0,0.00017867,2]
[354078205,1740225050015,-349.0,0.00017867,2]
[354078207,1740225050024,-349.0,0.00017867,2]
[354078209,1740225050034,-349.0,0.00017867,2]
[354078211,1740225050043,-349.0,0.00017867,2]
[354078213,1740225050052,-349.0,0.00017867,2]
[354078215,1740225050062,-349.0,0.00017867,2]
[354078217,1740225050071,-349.0,0.00017867,2]
[354078219,1740225050080,-349.0,0.00017867,2]
[354078221,1740225050090,-349.0,0.00017867,2]
[354078223,1740225050098,-349.0,0.00017867,2]
[354078224,1740225050108,-199.69303023,0.00017867,2]
[354078226,1740225050118,-315.0,0.00017867,2]
[354078229,1740225050127,-315.0,0.00017867,2]
[354078230,1740225050137,-315.0,0.00017867,2]
[354078233,1740225050147,-315.0,0.00017867,2]
[354078234,1740225050156,-315.0,0.00017867,2]
[354078237,1740225050165,-315.0,0.00017867,2]
[354078238,1740225050175,-315.0,0.00017867,2]
[354078240,1740225050185,-315.0,0.00017867,2]
[354078243,1740225050198,-315.0,0.00017867,2]
[354078244,1740225050207,-315.0,0.00017867,2]
[354078246,1740225050216,-315.0,0.00017867,2]
[354078248,1740225050226,-315.0,0.00017867,2]
[354078250,1740225050235,-315.0,0.00017867,2]
[354078252,1740225050245,-315.0,0.00017867,2]
[354078254,1740225050256,-315.0,0.00017867,2]
[354078257,1740225050267,-315.0,0.00017867,2]
[354078259,1740225050276,-315.0,0.00017867,2]
[354078261,1740225050286,-226.78240412,0.00017867,2]
[354078263,1740225050296,-1000.0,0.0001787,2]
[354078265,1740225050305,-1000.0,0.0001788,2]
[354078267,1740225050314,-328.0,0.0001789,2]
[354078269,1740225050323,-501.46570576,0.000179,31]
[354078271,1740225050333,-188.865121,0.000179,2]
[354078273,1740225050341,-188.865121,0.000179,2]
[354078275,1740225050351,-661.76198834,0.000179,2]
[354078277,1740225050360,-855.03201106,0.00017908,2]
[354078278,1740225050369,-904.73032312,0.0001799,2]
[354078281,1740225050379,-823.0,0.00017995,2]
[354078283,1740225050387,-1284.15788671,0.00017997,2]
[354078285,1740225050397,-160.0,0.00018,4]
[354078287,1740225050406,-160.0,0.00018,5]
[354078289,1740225050415,-160.0,0.00018,5]
[354078291,1740225050425,-64495.18576194,0.00018,5]
[354078293,1740225050434,-14458.25857573,0.00018,5]
[354078295,1740225050443,-141207.56304545,0.00018,15]
[354078305,1740225050534,-500.0,0.0001378,2]
[354078307,1740225050543,-26701.67312214,0.00018,15]
[354078314,1740225050632,-500.0,0.00013698,2]
[354078315,1740225050641,-500.0,0.0001378,2]
[354078316,1740225050650,-476.95418893,0.00013863,2]
[354078317,1740225050662,-23.04581107,0.00013863,2]
[354078318,1740225050672,-500.0,0.00013863,2]
[354078319,1740225050681,-500.0,0.00013945,2]
[354078320,1740225050690,-500.0,0.00014027,2]
[354078321,1740225050700,-7164.46223602,0.00018,15]
[354078322,1740225050711,-211765.85694438,0.00018,15]
[354078323,1740225050727,-500.0,0.00014109,2]
[354078324,1740225050736,-868.11427456,0.00018,15]
[354078325,1740225050748,-1526.86965393,0.00018,15]
[354078344,1740225050928,-500.0,0.00013698,2]
[354078346,1740225050937,-500.0,0.00013698,2]
[354078348,1740225050947,-500.0,0.00013698,2]
[354078350,1740225050956,-500.0,0.0001378,2]
[354078352,1740225050965,-500.0,0.00014191,2]
[354078354,1740225050975,-500.0,0.00014273,2]
[354078356,1740225050985,-500.0,0.00014356,2]
[354078358,1740225050994,-500.0,0.00014438,2]
[354078360,1740225051004,-500.0,0.0001452,2]
[354078362,1740225051013,-500.0,0.00014602,2]
[354078364,1740225051022,-393.84,0.00014684,2]
[354078366,1740225051032,-26344.96550932,0.00018,15]
[354078368,1740225051043,-60362.62094318,0.00018,15]
[354078371,1740225051054,-7611.57722611,0.00018,15]
[354078961,1740225355297,1000.0,0.00019,120]
[354078963,1740225915320,249.373736,9.041e-05,2]
[354079001,1740226240759,-254.57022479,0.0001368,2]
[354079003,1740226240769,-151.0,0.0001369,2]
[354079005,1740226240778,-500.0,0.00013698,2]
[354079007,1740226240787,-500.0,0.00013698,2]
[354079009,1740226240796,-500.0,0.00013698,2]
[354079011,1740226240805,-300.0,0.00013698,2]
[354079013,1740226240814,-500.0,0.00013698,2]
[354079015,1740226240824,-500.0,0.00013698,2]
[354079017,1740226240833,-500.0,0.00013698,2]
[354079019,1740226240842,-500.0,0.00013698,2]
[354079022,1740226240852,-585.00504925,0.00013698,2]
[354079024,1740226240861,-500.0,0.00013698,2]
[354079026,1740226240870,-500.0,0.00013698,2]
[354079028,1740226240879,-500.0,0.00013698,2]
[354079030,1740226240888,-500.0,0.00013698,2]
[354079032,1740226240897,-500.0,0.00013698,2]
[354079034,1740226240906,-533.25,0.00013698,2]
[354079036,1740226240915,-500.0,0.00013698,2]
[354079038,1740226240923,-500.0,0.00013698,2]
[354079039,1740226240933,-500.0,0.00013698,2]
[354079042,1740226240942,-500.0,0.00013698,2]
[354079044,1740226240952,-500.0,0.00013698,2]
[354079046,1740226240961,-500.0,0.00013698,2]
[354079048,1740226240970,-500.0,0.00013698,2]
[354079050,1740226240979,-500.0,0.00013698,2]
[354079052,1740226240988,-500.0,0.00013698,2]
[354079054,1740226240997,-500.0,0.00013698,2]
[354079056,1740226241006,-500.0,0.00013698,2]
[354079058,1740226241016,-500.0,0.00013698,2]
[354079060,1740226241024,-500.0,0.00013698,2]
[354079062,1740226241033,-500.0,0.00013698,2]
[354079064,1740226241042,-362.2068643,0.00013698,2]
[354079065,1740226241052,-500.0,0.00013698,2]
[354079067,1740226241062,-500.0,0.00013698,2]
[354079070,1740226241072,-500.0,0.00013698,2]
[354079072,1740226241081,-500.0,0.00013698,2]
[354079074,1740226241090,-500.0,0.00013698,2]
[354079076,1740226241099,-500.0,0.00013698,2]
[354079078,1740226241107,-500.0,0.00013698,2]
[354079080,1740226241117,-500.0,0.00013698,2]